bitfinex/quotes_ETHUSD_20250214
["timestamp","ask_amount","ask_price","bid_price","bid_amount"]
[1739542129339,3.691,2709.3,2708.8,3.69167]
[1739542129736,3.69124,2709.2,2708.4,3.69214]
[1739542130072,3.69127,2709.1,2708.6,3.69187]
[1739542130253,3.69143,2709.0,2708.5,3.69204]
[1739542130583,3.69123,2709.2,2708.7,3.69179]
[1739542131256,3.69123,2709.2,2708.7,3.69173]
[1739542131651,0.7916,2709.3,2708.8,3.69154]
[1739542131965,0.7916,2709.3,2708.9,3.69145]
[1739542132470,0.772,2709.5,2709.0,3.69129]
[1739542132692,0.772,2709.5,2709.1,3.69124]
[1739542132868,0.772,2709.5,2709.1,7.38241]
[1739542133022,4.46274,2709.5,2709.0,3.69135]
[1739542133227,0.772,2709.5,2709.1,3.69124]
[1739542133639,4.46273,2709.5,2708.9,3.69144]
[1739542133841,3.69092,2709.4,2708.9,3.69144]
[1739542134133,3.691,2709.3,2708.8,3.69166]
[1739542134971,3.69118,2709.2,2708.7,3.69171]
[1739542135330,3.69118,2709.2,2708.7,4.32414435]
[1739542135531,3.69118,2709.2,2708.7,8.01586435]
[1739542135747,4.46284,2709.5,2708.7,8.01586435]
[1739542135748,3.69092,2709.4,2708.8,3.69159]
[1739542135963,4.46284,2709.5,2709.0,3.69132]
[1739542136170,4.46283,2709.5,2708.8,7.38326]
[1739542136371,3.69093,2709.4,2708.9,3.6915]
[1739542136551,4.46283,2709.5,2709.0,3.69139]
[1739542136757,4.46283,2709.5,2709.0,7.38271]
[1739542137159,4.46283,2709.5,2709.0,3.69132]
[1739542137695,3.69086,2709.4,2709.0,3.69132]
[1739542137896,0.772,2709.5,2708.8,3.69155]
[1739542138052,3.6912,2709.2,2708.6,3.69185]
[1739542138254,4.46331,2709.1,2708.6,4.112555]
[1739542138479,0.772,2709.1,2708.7,3.69174]
[1739542139395,0.772,2709.1,2708.7,3.6918]
[1739542140255,0.772,2709.1,2708.6,4.112645]
[1739542140456,0.772,2709.1,2708.7,3.69172]
[1739542140656,0.772,2709.1,2708.7,4.5236765]
[1739542141057,4.46329,2709.1,2708.7,0.8319565]
[1739542141255,4.46329,2709.1,2708.6,4.112645]
[1739542142101,0.772,2709.1,2708.4,3.69211]
[1739542142403,0.772,2709.1,2708.2,3.69239]
[1739542142404,0.7685,2708.8,2708.2,3.69239]
[1739542142756,0.7685,2708.8,2708.0,9.54364]
[1739542142997,0.7685,2708.5,2708.0,10.549524]
[1739542143185,4.46059,2708.5,2708.0,10.549524]
[1739542143957,4.46059,2708.5,2708.0,4.698524]
[1739542144158,0.7685,2708.5,2708.0,4.698524]
[1739542144358,0.7685,2708.5,2707.9,0.5152]
[1739542144558,0.7685,2708.5,2708.1,3.69252]
[1739542144793,3.69235,2708.3,2707.7,3.69306]
[1739542145302,3.69235,2708.3,2707.7,7.38615]
[1739542145892,3.69235,2708.3,2707.7,3.69306]
[1739542146100,3.69235,2708.3,2707.7,7.806956]
[1739542146456,3.69228,2708.4,2707.7,4.113886]
[1739542146656,0.7685,2708.5,2707.7,0.420826]
[1739542146857,4.46058,2708.5,2707.9,3.69276]
[1739542147058,0.812,2708.7,2708.3,3.69228]
[1739542147571,4.50383,2708.7,2708.2,3.69241]
[1739542148396,0.812,2708.7,2708.2,3.69241]
[1739542148604,0.812,2708.7,2708.3,3.69227]
[1739542148804,0.812,2709.0,2708.5,3.69196]
[1739542149722,3.69165,2708.9,2708.2,0.420761]
[1739542149860,3.69185,2708.7,2708.1,3.69251]
[1739542150061,3.69203,2708.6,2708.1,3.69251]
[1739542150265,3.69217,2708.5,2707.9,3.69282]
[1739542150573,0.812,2708.4,2707.9,3.69281]
[1739542150756,0.812,2708.4,2707.9,4.113611]
[1739542151389,0.812,2708.4,2708.0,3.69276]
[1739542151970,0.812,2708.4,2707.7,3.69308]
[1739542152173,3.69249,2708.2,2707.7,3.69308]
[1739542153231,3.69243,2708.3,2707.7,3.69308]
[1739542153367,3.69243,2708.3,2707.8,3.693]
[1739542154086,0.812,2708.3,2707.3,3.50482612]
[1739542154308,0.812,2708.1,2707.2,3.69374]
[1739542154461,0.8195,2708.1,2707.1,3.6989]
[1739542154663,0.812,2707.8,2707.3,3.69369]
[1739542154890,0.812,2708.1,2707.5,3.69341]
[1739542155128,3.69279,2708.0,2707.4,4.20867]
[1739542155493,0.812,2708.1,2707.4,0.5152]
[1739542155729,4.50463,2708.1,2707.5,3.69335]
[1739542155901,0.812,2708.1,2707.5,3.69332]
[1739542156303,0.812,2708.1,2707.7,3.69312]
[1739542156933,0.812,2708.1,2707.6,3.6933]
[1739542157306,0.812,2708.1,2707.7,3.69306]
[1739542157905,4.50462,2708.1,2707.5,4.114212]
[1739542158137,4.50462,2708.1,2707.6,3.69329]
[1739542158305,0.812,2708.1,2707.7,3.69312]
[1739542158505,0.812,2708.1,2707.8,3.69302]
[1739542159036,0.812,2708.1,2707.6,3.6932]
[1739542159233,0.812,2708.1,2707.7,3.69312]
[1739542159757,0.812,2708.1,2707.6,4.1561252]
[1739542161165,0.812,2708.1,2707.7,3.6931]
[1739542161452,0.812,2708.1,2707.8,3.69297]
[1739542161615,0.812,2708.1,2707.5,3.6934]
[1739542161966,3.69277,2708.0,2707.5,3.6934]
[1739542162255,0.8077,2707.9,2707.3,3.69362]
[1739542162496,3.69311,2707.8,2707.3,7.38726]
[1739542162797,3.69311,2707.8,2707.3,7.38724]
[1739542163289,0.8077,2707.9,2707.4,3.69355]
[1739542163496,4.50059,2707.9,2707.4,3.69355]
[1739542164281,3.69306,2707.8,2707.2,3.69382]
[1739542164479,3.69306,2707.8,2707.2,4.115222]
[1739542164819,4.50102,2707.6,2707.1,3.69897]
[1739542164977,0.8077,2707.6,2707.2,3.69384]
[1739542165140,0.8077,2707.6,2707.2,3.69376]
[1739542165350,0.8077,2707.6,2707.3,3.69369]
[1739542165570,0.8077,2707.6,2707.4,3.69354]
[1739542167095,3.69378,2707.3,2707.1,0.005]
[1739542167256,3.69385,2707.2,2707.1,0.005]
[1739542167459,4.50155,2707.2,2707.1,0.005]
[1739542167664,4.951705,2707.2,2707.1,0.005]
[1739542168877,4.50155,2707.2,2707.1,0.005]
[1739542170596,0.8077,2707.2,2707.1,0.005]
[1739542170776,4.50155,2707.2,2707.1,0.005]
[1739542171453,0.8077,2707.5,2707.1,0.005]
[1739542172050,0.8077,2707.7,2707.2,7.38761]
[1739542172389,0.8077,2707.7,2707.3,3.69362]
[1739542172601,0.8077,2707.7,2707.2,4.948231]
[1739542173257,4.50088,2707.7,2707.2,4.948231]
[1739542174578,12.02005,2708.2,2707.1,0.005]
[1739542174579,0.8077,2707.2,2707.1,0.005]
[1739542174777,4.50155,2707.2,2707.1,0.005]
[1739542176490,3.69385,2707.2,2707.1,0.005]
[1739542176693,4.50255,2707.2,2707.1,0.005]
[1739542178309,5.322181,2707.2,2707.1,0.005]
[1739542178520,0.8087,2707.2,2707.1,0.005]
[1739542178737,0.8087,2707.5,2707.1,0.005]
[1739542179041,3.69322,2707.7,2707.2,0.5152]
[1739542179338,3.69345,2707.5,2707.2,0.5152]
[1739542179505,3.69345,2707.5,2707.1,0.005]
[1739542179701,3.69358,2707.4,2707.1,0.005]
[1739542179901,3.69345,2707.5,2707.1,0.426446]
[1739542180235,3.69345,2707.5,2707.1,0.005]
[1739542180236,3.69372,2707.3,2707.1,0.005]
[1739542181454,3.69385,2707.2,2707.1,0.005]
[1739542185159,4.50208,2707.6,2707.1,0.005]
[1739542186874,0.8087,2707.6,2707.1,0.005]
[1739542187024,3.69346,2707.5,2707.1,0.005]
[1739542187225,3.69346,2707.5,2707.1,0.426421]
[1739542187451,4.50208,2707.6,2707.1,0.426421]
[1739542187649,3.69353,2707.5,2707.1,0.426421]
[1739542188129,0.8087,2707.6,2707.1,0.426421]
[1739542188354,0.8087,2707.6,2707.1,4.120381]
[1739542188639,3.69326,2707.7,2707.2,4.5267191]
[1739542188843,3.69325,2707.7,2707.2,4.5267191]
[1739542189555,3.69325,2707.7,2707.2,0.8329591]
[1739542190467,3.69325,2707.7,2707.2,4.5267291]
[1739542191246,3.69299,2707.9,2707.4,4.20877]
[1739542191442,3.69299,2707.9,2707.4,5.08231291]
[1739542191650,3.69385,2707.2,2707.1,0.005]
[1739542191955,8.21951,2707.4,2707.1,0.005]
[1739542192168,0.8322,2707.4,2707.1,0.005]
[1739542192409,4.52582,2707.4,2707.1,0.005]
[1739542192740,3.6938,2707.3,2707.1,0.005]
[1739542193147,3.69371,2707.3,2707.1,0.005]
[1739542193610,3.69385,2707.2,2707.1,0.005]
[1739542194353,4.515826,2707.2,2707.1,0.005]
[1739542195180,3.69385,2707.2,2707.1,0.005]
[1739542197563,4.52605,2707.2,2707.1,0.005]
[1739542198567,3.69385,2707.2,2707.1,0.005]
[1739542198841,3.69375,2707.3,2707.1,0.005]
[1739542198995,3.69385,2707.2,2707.1,0.005]
[1739542199422,3.69346,2707.5,2707.1,0.005]
[1739542199643,7.38699,2707.5,2707.1,0.005]
[1739542200053,3.69369,2707.4,2707.1,0.005]
[1739542200221,3.69385,2707.2,2707.1,0.005]
[1739542200411,4.52605,2707.2,2707.1,0.005]
[1739542201007,8.03087612,2707.2,2707.1,0.005]
[1739542201660,10.24687612,2707.2,2707.1,0.005]
[1739542201863,8.03087612,2707.2,2707.1,0.005]
[1739542202156,8.48272437,2707.2,2707.1,0.005]
[1739542202542,11.49772437,2707.2,2707.1,0.005]
[1739542202742,12.04772437,2707.2,2707.1,0.005]
[1739542203351,14.26372437,2707.2,2707.1,0.005]
[1739542204080,11.49772437,2707.2,2707.1,0.005]
[1739542204234,11.48272437,2707.2,2707.1,0.005]
[1739542206157,12.04772437,2707.2,2707.1,0.005]
[1739542206513,12.04772437,2707.2,2705.5,3.8425359]
[1739542206514,3.69546,2706.1,2705.5,3.8425359]
[1739542206797,3.69556,2706.0,2705.5,3.8425359]
[1739542207579,3.50482612,2706.2,2705.5,0.1463759]
[1739542207831,3.69577,2705.8,2705.5,0.1463759]
[1739542208217,3.69603,2705.6,2705.5,0.1463759]
[1739542209884,3.0,2706.1,2705.5,0.1463759]
[1739542210106,3.69543,2706.1,2705.6,0.5202]
[1739542210702,3.7852,2706.2,2705.7,0.43626559]
[1739542210703,7.48042,2706.2,2705.7,0.43626559]
[1739542211053,3.50482612,2706.5,2705.9,0.5202]
[1739542211054,3.69485,2706.5,2705.9,0.5202]
[1739542211261,7.38978,2706.5,2706.0,3.69547]
[1739542211557,7.38976,2706.5,2705.9,0.5202]
[1739542212067,3.69496,2706.4,2705.9,0.5202]
[1739542212196,3.69496,2706.4,2705.9,0.98541156]
[1739542212395,3.69485,2706.5,2705.9,0.98541156]
[1739542212697,3.69497,2706.4,2705.9,0.98541156]
[1739542212962,3.69515,2706.3,2705.9,0.5202]
[1739542213565,7.38977,2706.5,2705.9,4.21578]
[1739542213919,3.69487,2706.5,2705.9,0.5202]
[1739542214146,3.69459,2706.7,2706.2,3.69513]
[1739542214296,3.69459,2706.7,2706.1,3.69528]
[1739542214636,3.69459,2706.7,2706.2,3.6952]
[1739542215038,3.69442,2706.8,2706.3,4.21528]
[1739542215242,4.47952,2706.9,2706.3,4.21528]
[1739542215538,3.69455,2706.7,2706.3,0.5202]
[1739542216090,8.17387,2706.9,2706.3,4.21524]
[1739542216356,3.69449,2706.8,2706.3,4.21526]
[1739542216657,4.47952,2706.9,2706.4,3.6949]
[1739542216658,3.69426,2706.9,2706.4,3.6949]
[1739542216872,3.69408,2707.1,2706.5,3.69467]
[1739542217019,3.69408,2707.1,2706.3,1.28229262]
[1739542217020,3.69408,2707.1,2706.4,4.21514]
[1739542217203,3.69412,2707.0,2706.5,3.69473]
[1739542217403,3.69408,2707.1,2706.5,4.56192626]
[1739542217959,3.69419,2707.0,2706.5,0.86719626]
[1739542218167,3.69408,2707.1,2706.5,4.56192626]
[1739542218464,3.69408,2707.1,2706.6,0.5202]
[1739542218596,3.69473,2706.6,2706.0,4.21561]
[1739542218796,3.69482,2706.5,2706.0,0.5202]
[1739542219223,3.69473,2706.6,2706.1,3.69532]
[1739542219760,3.69473,2706.6,2706.0,4.21561]
[1739542220539,3.69495,2706.4,2706.0,0.5202]
[1739542220695,3.69473,2706.6,2706.1,3.69534]
[1739542220900,7.38947,2706.6,2706.1,3.69534]
[1739542221183,3.69492,2706.5,2706.0,0.5202]
[1739542221461,3.69535,2706.1,2705.6,0.5202]
[1739542221620,7.39026,2706.3,2705.7,3.69588]
[1739542221823,3.6951,2706.3,2705.8,4.21586]
[1739542223561,7.3889,2706.8,2706.2,3.69519]
[1739542223709,3.6944,2706.8,2706.3,3.69506]
[1739542225462,3.69454,2706.7,2706.2,3.69515]
[1739542225957,3.0,2706.9,2706.2,3.69515]
[1739542226160,4.51092,2707.0,2706.1,0.5202]
[1739542226364,3.69363,2707.4,2705.9,4.8310295]
[1739542226365,3.69394,2707.2,2706.7,0.5202]
[1739542226660,3.6942,2707.0,2706.7,0.5202]
[1739542226862,3.69421,2707.0,2706.7,0.5202]
[1739542227021,3.69421,2707.0,2706.4,7.3897]
[1739542227203,3.69421,2707.0,2706.4,3.69484]
[1739542227404,3.69393,2707.2,2706.4,3.69484]
[1739542227605,3.69393,2707.2,2706.8,3.69439]
[1739542228020,3.69393,2707.2,2706.7,4.21473]
[1739542228422,3.69393,2707.2,2706.7,4.21465]
[1739542228630,3.69399,2707.1,2706.7,0.5202]
[1739542228807,3.69393,2707.2,2706.7,0.5202]
[1739542229006,7.38787,2707.2,2706.7,0.5202]
[1739542229200,0.8167,2707.4,2706.7,0.5202]
[1739542229406,3.6942,2707.0,2706.7,0.5202]
[1739542229842,3.69433,2706.9,2706.5,0.5202]
[1739542231648,3.6942,2707.0,2706.5,0.5202]
[1739542232631,3.6942,2707.0,2706.5,4.215]
[1739542233705,0.38167,2707.3,2706.5,0.5202]
[1739542233905,3.69417,2707.0,2706.5,0.5202]
[1739542234208,3.69441,2706.8,2706.5,0.5202]
[1739542234996,3.69456,2706.7,2706.5,0.5202]
[1739542235216,3.69493,2706.5,2706.3,0.2504]
[1739542235419,3.69494,2706.4,2706.3,0.2504]
[1739542236090,4.509663,2706.4,2706.3,0.2504]
[1739542238714,0.814723,2706.4,2706.3,0.2504]
[1739542238924,3.69474,2706.6,2706.3,0.2504]
[1739542239585,3.69467,2706.6,2706.3,0.2504]
[1739542239779,3.0,2706.8,2706.3,3.94547]
[1739542240114,3.694,2707.1,2706.6,3.69459]
[1739542240466,3.694,2707.1,2706.5,0.5202]
[1739542240467,3.69429,2706.9,2706.5,0.5202]
[1739542241615,3.69443,2706.8,2706.5,0.5202]
[1739542241799,3.6942,2707.0,2706.5,0.5202]
[1739542242010,3.69408,2707.1,2706.5,4.2149]
[1739542242219,0.8052,2707.2,2706.6,3.69465]
[1739542242515,3.69393,2707.2,2706.7,3.69443]
[1739542242723,3.69393,2707.2,2706.5,4.21498]
[1739542242724,3.69406,2707.1,2706.5,4.21498]
[1739542243022,3.69412,2707.0,2706.5,0.5202]
[1739542243236,3.69426,2706.9,2706.5,0.5202]
[1739542244271,4.49926,2707.1,2706.5,0.5202]
[1739542244525,3.69412,2707.0,2706.5,4.21499]
[1739542245276,3.69412,2707.0,2706.3,0.2504]
[1739542245277,0.8052,2706.4,2706.3,0.2504]
[1739542245436,4.50014,2706.4,2706.3,0.2504]
[1739542251830,3.69494,2706.4,2706.3,0.2504]
[1739542254662,3.70244,2706.4,2706.3,0.2504]
[1739542254863,4.95478525,2706.4,2706.3,0.2504]
[1739542255823,7.95478525,2706.4,2706.3,0.2504]
[1739542258980,7.94728525,2706.4,2706.3,0.2504]
[1739542259535,7.95478525,2706.4,2706.3,0.2504]
[1739542263440,7.94728525,2706.4,2706.3,0.2504]
[1739542267068,7.14938525,2706.4,2706.3,0.2504]
[1739542272836,7.92828525,2706.4,2706.3,0.2504]
[1739542272971,7.93578525,2706.4,2706.3,0.2504]
[1739542273887,10.16328525,2706.4,2706.3,0.2504]
[1739542275306,10.15578525,2706.4,2706.3,0.2504]
[1739542275513,7.92828525,2706.4,2706.3,0.2504]
[1739542277303,3.69494,2706.4,2706.3,0.2504]
[1739542281125,4.52564,2706.4,2706.3,0.2504]
[1739542281443,9.75314,2706.4,2706.3,0.2504]
[1739542282807,3.69603,2705.6,2705.5,0.1463759]
[1739542283255,6.69603,2705.6,2705.5,0.1463759]
[1739542283750,6.70353,2705.6,2705.5,0.1463759]
[1739542285769,8.92353,2705.6,2705.5,0.1463759]
[1739542286792,6.70353,2705.6,2705.5,0.1463759]
[1739542287371,10.48612777,2705.6,2705.5,5.9e-06]
[1739542287549,3.69734,2704.7,2704.1,0.70639944]
[1739542287753,3.69734,2704.7,2704.2,3.69795]
[1739542287964,3.69703,2704.9,2704.3,4.21798]
[1739542288203,3.69716,2704.8,2704.3,0.5202]
[1739542288503,0.90857237,2705.9,2704.5,0.5202]
[1739542288657,0.90857237,2705.9,2704.9,4.21718]
[1739542288658,0.8232,2705.7,2704.9,4.21718]
[1739542288859,0.8232,2705.7,2704.9,5.36045759]
[1739542288860,3.69627,2705.5,2704.9,5.36045759]
[1739542289255,3.69627,2705.5,2704.9,1.66347759]
[1739542289581,3.69631,2705.4,2704.9,1.66347759]
[1739542289956,3.69631,2705.4,2704.9,0.5202]
[1739542290198,3.6965,2705.3,2704.9,0.5202]
[1739542290396,3.69667,2705.2,2704.9,0.5202]
[1739542291609,0.0075,2705.6,2704.4,3.70531298]
[1739542291798,3.69702,2704.9,2704.4,3.69756]
[1739542291999,3.69702,2704.9,2704.5,0.5202]
[1739542292155,3.69672,2705.1,2704.5,4.21773]
[1739542292357,3.69646,2705.3,2704.7,3.69724]
[1739542292658,3.6964,2705.4,2704.9,3.69695]
[1739542292874,3.69661,2705.2,2704.8,0.5202]
[1739542293272,3.69666,2705.2,2704.8,0.5202]
[1739542293669,3.69721,2704.8,2704.2,3.69786]
[1739542293909,3.69729,2704.7,2704.2,0.5202]
[1739542294064,3.69721,2704.8,2704.2,0.5202]
[1739542294264,3.69721,2704.8,2704.3,3.69775]
[1739542294695,3.69689,2705.0,2704.6,0.5202]
[1739542295276,3.69717,2704.8,2704.6,0.5202]
[1739542296415,3.69744,2704.6,2704.2,0.5202]
[1739542296709,3.69717,2704.8,2704.2,0.5202]
[1739542297087,3.69707,2704.9,2704.4,0.5202]
[1739542297601,3.69689,2705.0,2704.4,4.21786]
[1739542298687,3.69689,2705.0,2704.4,0.5202]
[1739542298881,3.69717,2704.8,2704.4,0.5202]
[1739542299374,3.69689,2705.0,2704.4,0.5202]
[1739542299577,3.6966,2705.2,2704.5,3.69744]
[1739542299776,3.6966,2705.2,2704.6,0.5202]
[1739542299986,3.69689,2705.0,2704.6,0.5202]
[1739542301495,3.69667,2705.2,2704.6,0.5202]
[1739542301699,3.69672,2705.1,2704.6,4.2176]
[1739542302096,0.8206,2705.5,2704.6,4.2176]
[1739542302097,0.0075,2705.4,2704.6,0.5202]
[1739542302418,3.69726,2704.8,2704.6,0.5202]
[1739542302811,3.69701,2704.9,2704.6,0.5202]
[1739542304010,3.69685,2705.0,2704.6,0.5202]
[1739542304476,7.39379,2705.0,2704.6,0.5202]
[1739542305076,3.69702,2704.9,2704.6,0.5202]
[1739542306101,3.69682,2705.1,2704.6,0.5202]
[1739542306415,3.69685,2705.0,2704.6,0.5202]
[1739542307189,3.69682,2705.1,2704.6,0.5202]
[1739542307190,3.9442,2704.9,2704.6,0.5202]
[1739542308518,0.2472,2704.9,2704.6,4.21753]
[1739542308814,0.2472,2704.9,2704.6,0.5202]
[1739542310144,3.9442,2704.9,2704.6,0.5202]
[1739542310757,0.0075,2704.7,2704.1,0.5202]
[1739542311049,3.69741,2704.6,2704.1,4.21824]
[1739542311248,0.2472,2704.9,2704.5,3.69754]
[1739542311450,0.2472,2704.9,2704.5,0.5202]
[1739542311809,0.2472,2704.9,2704.5,4.21772]
[1739542312511,0.2472,2704.9,2704.6,3.69739]
[1739542312811,0.2472,2704.9,2704.5,4.21772]
[1739542313245,0.2472,2704.9,2704.5,0.5202]
[1739542313443,3.94422,2704.9,2704.5,4.21773]
[1739542313628,0.2472,2704.9,2704.5,4.21773]
[1739542313833,0.2472,2704.9,2704.5,7.91519]
[1739542314556,0.00587186,2704.9,2704.6,0.791519]
[1739542315057,0.00587186,2704.9,2704.5,4.21766]
[1739542315259,3.70293186,2704.9,2704.5,0.5202]
[1739542316141,0.00587186,2704.9,2704.6,3.69739]
[1739542316473,0.00587186,2704.9,2704.5,0.5202]
[1739542316772,0.00587186,2704.9,2704.5,4.21765]
[1739542316977,0.00587186,2704.9,2704.6,0.791525]
[1739542317320,0.00587186,2704.9,2704.6,3.69728]
[1739542317527,0.00587186,2704.9,2704.5,4.21773]
[1739542317528,0.00587186,2704.9,2704.5,0.5202]
[1739542317842,3.70288186,2704.9,2704.5,4.21772]
[1739542318060,0.00587186,2704.9,2704.5,4.21772]
[1739542318960,3.70293186,2704.9,2704.5,0.5202]
[1739542319430,0.00587186,2704.9,2704.5,0.5202]
[1739542319637,0.00587186,2704.9,2704.5,4.21771]
[1739542319840,0.00587186,2704.9,2704.5,4.21767]
[1739542320164,0.00587186,2704.9,2704.5,5.009179]
[1739542320370,0.00587186,2704.9,2704.6,4.24726]
[1739542320609,3.6972,2704.8,2704.3,3.69779]
[1739542320865,3.6972,2704.8,2704.4,0.55]
[1739542322252,3.69726,2704.7,2704.4,0.55]
[1739542322436,3.6972,2704.8,2704.4,0.55]
[1739542323266,0.7959,2704.6,2704.2,4.24787]
[1739542323452,0.7959,2704.6,2704.2,4.669689]
[1739542324771,0.7959,2704.8,2704.3,3.69779]
[1739542324945,4.49306,2704.8,2704.3,3.69779]
[1739542325144,4.49306,2704.8,2704.4,0.55]
[1739542325341,0.7959,2704.8,2704.4,4.24758]
[1739542325561,4.49311,2704.8,2704.4,0.55]
[1739542326474,3.69728,2704.7,2704.4,0.55]
[1739542327684,3.69726,2704.7,2704.3,0.55]
[1739542328262,3.69744,2704.6,2704.3,0.55]
[1739542328485,3.69726,2704.7,2704.3,0.55]
[1739542328752,0.7959,2704.8,2704.0,4.2184]
[1739542328901,0.7739,2704.6,2703.7,0.5202]
[1739542329100,3.69804,2704.2,2703.7,4.21883]
[1739542329444,3.69825,2704.0,2703.8,0.55]
[1739542329943,3.69812,2704.1,2703.8,0.55]
[1739542330245,3.6981,2704.1,2703.8,0.55]
[1739542330605,3.69808,2704.1,2703.5,0.5202]
[1739542330921,3.6983,2704.0,2703.5,0.5202]
[1739542331321,3.6983,2704.0,2703.6,0.55]
[1739542331633,3.69808,2704.1,2703.6,0.55]
[1739542331836,3.69838,2703.9,2703.6,0.55]
[1739542332403,3.69808,2704.1,2703.6,0.55]
[1739542332628,3.69823,2704.0,2703.6,0.55]
[1739542333353,5.32,2704.4,2703.8,4.06846592]
[1739542333520,5.32,2704.4,2704.1,0.5202]
[1739542333846,9.01774,2704.4,2704.2,0.55]
[1739542334145,3.69774,2704.4,2704.2,0.55]
[1739542336442,3.69781,2704.3,2703.8,0.55]
[1739542336642,3.69803,2704.2,2703.8,0.55]
[1739542336841,8.16999,2704.2,2703.7,0.5202]
[1739542337049,3.69809,2704.1,2703.7,0.5202]
[1739542337970,4.47192,2704.2,2703.8,0.55]
[1739542338135,8.16999,2704.2,2703.8,0.55]
[1739542338341,4.515119,2704.1,2703.8,0.55]
[1739542338555,4.515119,2704.1,2703.7,0.55]
[1739542338730,3.69832,2704.0,2703.7,0.55]
[1739542339645,3.69832,2704.0,2703.6,0.55]
[1739542339969,3.69809,2704.1,2703.6,4.76895]
[1739542340171,4.47185,2704.2,2703.7,3.69861]
[1739542340373,3.69779,2704.4,2704.0,0.55]
[1739542340709,3.69779,2704.4,2703.9,0.55]
[1739542340710,3.69768,2704.4,2703.9,0.55]
[1739542340835,3.69768,2704.4,2703.9,4.24835]
[1739542341335,3.69768,2704.4,2703.7,3.6986]
[1739542341336,3.69785,2704.3,2703.8,0.55]
[1739542341766,3.69785,2704.3,2703.8,4.24842]
[1739542342876,6.153,2704.5,2703.9,3.69833]
[1739542343082,3.69775,2704.4,2704.0,0.5202]
[1739542344089,3.69782,2704.3,2704.0,0.5202]
[1739542344268,3.69775,2704.4,2704.0,0.5202]
[1739542344470,3.69801,2704.2,2703.9,0.55]
[1739542344980,3.69787,2704.3,2703.9,0.55]
[1739542345177,3.8141,2704.2,2703.5,0.5202]
[1739542345377,3.69869,2703.7,2703.1,3.69932]
[1739542345604,7.39741,2703.7,2703.2,3.69931]
[1739542345811,3.69869,2703.7,2703.2,3.69931]
[1739542346011,3.69884,2703.6,2703.3,0.55]
[1739542346208,0.8066,2703.8,2702.8,7.88481182]
[1739542346397,0.8066,2703.8,2702.8,4.18504182]
[1739542346398,3.69863,2703.7,2702.8,4.18504182]
[1739542346594,3.69863,2703.7,2703.2,0.5202]
[1739542346924,0.8066,2704.0,2703.2,0.5202]
[1739542347219,3.69816,2704.1,2703.6,0.55]
[1739542347423,3.6983,2704.0,2703.6,0.55]
[1739542348620,3.69816,2704.1,2703.5,0.55]
[1739542348837,5.32,2704.5,2704.0,3.69809]
[1739542348982,6.1341,2704.6,2704.1,0.55]
[1739542349338,3.69786,2704.3,2704.1,0.55]
[1739542349533,3.69786,2704.3,2703.8,1.0702]
[1739542349886,3.69796,2704.2,2703.8,1.0702]
[1739542350511,3.69768,2704.4,2703.8,1.0702]
[1739542350753,3.6979,2704.3,2703.8,1.89891659]
[1739542351722,3.6979,2704.3,2703.8,5.59738659]
[1739542351924,3.69819,2704.1,2703.6,0.5202]
[1739542352110,3.69819,2704.1,2703.4,3.51846592]
[1739542352111,0.8066,2704.1,2703.7,0.55]
[1739542352313,3.69852,2703.8,2703.4,0.5202]
[1739542352612,3.69852,2703.8,2703.5,0.55]
[1739542354324,3.69829,2704.0,2703.5,0.55]
[1739542354325,7.39661,2704.0,2703.5,0.55]
[1739542354541,3.69829,2704.0,2703.5,0.55]
[1739542354747,0.8066,2704.1,2703.6,3.6987]
[1739542355047,3.69781,2704.3,2703.8,1.0702]
[1739542355248,3.69781,2704.3,2704.0,0.55]
[1739542355620,3.6977,2704.4,2703.9,4.24827]
[1739542355818,3.69737,2704.7,2704.0,0.03698136]
[1739542356023,3.69737,2704.7,2704.4,0.55]
[1739542356638,3.69734,2704.7,2704.4,0.55]
[1739542357349,3.69748,2704.6,2704.4,0.55]
[1739542357905,3.69729,2704.7,2704.4,0.55]
[1739542358310,3.69722,2704.8,2704.4,0.55]
[1739542358311,3.6974,2704.6,2704.4,0.55]
[1739542359051,3.69728,2704.7,2704.4,0.55]
[1739542359651,0.00587186,2704.9,2704.4,0.55]
[1739542359853,3.69747,2704.6,2704.4,0.55]
[1739542360759,0.00587186,2704.9,2704.4,4.24757]
[1739542360954,3.70288186,2704.9,2704.6,0.55]
[1739542362170,7.40000186,2704.9,2704.6,0.55]
[1739542362398,3.70288186,2704.9,2704.6,0.55]
[1739542363034,0.00587186,2704.9,2704.6,0.55]
[1739542363232,0.00587186,2704.9,2704.8,0.55]
[1739542363467,0.00587186,2704.9,2704.8,4.24713]
[1739542363673,0.00587186,2704.9,2704.8,5.44913348]
[1739542364470,0.00587186,2704.9,2704.8,5.96933348]
[1739542368443,0.00587186,2704.9,2704.8,5.96293348]
[1739542370356,0.00587186,2704.9,2704.8,5.99989748]
[1739542370679,0.00587186,2704.9,2704.8,5.96293348]
[1739542374258,0.00587186,2704.9,2704.8,5.44273348]
[1739542384291,0.00587186,2704.9,2704.8,17.75739577]
[1739542384648,0.00587186,2704.9,2704.8,17.72043348]
[1739542384804,0.00587186,2704.9,2704.8,17.71293348]
[1739542387571,0.00587186,2704.9,2704.8,8.96293348]
[1739542390074,0.00587186,2704.9,2704.8,8.41933348]